bitfinex-derivatives/quotes_BTCF0:USTF0_20251009
["timestamp","ask_amount","ask_price","bid_price","bid_amount"]
[1760012819171,0.87571966,123100.0,123090.0,0.77418]
[1760012819866,1.06402434,123100.0,123090.0,0.77414]
[1760012820266,0.87571966,123100.0,123090.0,0.1380069]
[1760012820571,0.87571966,123100.0,123090.0,0.8765669]
[1760012826768,0.4991103,123100.0,123090.0,0.8765669]
[1760012826966,0.87571966,123100.0,123090.0,0.8765669]
[1760012827665,0.87571966,123100.0,123090.0,0.8764069]
[1760012828070,0.87571966,123100.0,123090.0,0.1380069]
[1760012828269,0.87571966,123100.0,123090.0,0.8764069]
[1760012829074,0.87571966,123100.0,123090.0,0.1380069]
[1760012829277,0.4777203,123100.0,123090.0,0.1380069]
[1760012829571,0.85432966,123100.0,123090.0,0.8764069]
[1760012830179,0.4777203,123100.0,123090.0,0.8764069]
[1760012830474,0.85432966,123100.0,123090.0,0.8764069]
[1760012830974,0.4777203,123100.0,123090.0,0.8764069]
[1760012831177,0.49352966,123100.0,123090.0,0.8764069]
[1760012831374,0.49352966,123100.0,123090.0,0.97836635]
[1760012831675,0.49352966,123100.0,123090.0,0.8764069]
[1760012831874,0.41231936,123100.0,123090.0,1.2372069]
[1760012832170,0.001,123100.0,123090.0,1.82551158]
[1760012832377,0.001,123100.0,123090.0,2.09521158]
[1760012832573,0.18930468,123100.0,123090.0,2.09521158]
[1760012832970,0.18930468,123100.0,123090.0,1.82551158]
[1760012833570,0.18930468,123100.0,123090.0,1.92713559]
[1760012833977,0.18930468,123100.0,123090.0,1.18873559]
[1760012834178,0.18930468,123100.0,123090.0,1.92705559]
[1760012834670,0.22301468,123120.0,123110.0,0.1379872]
[1760012834873,0.49251646,123120.0,123110.0,1.04404944]
[1760012835272,0.49251646,123120.0,123110.0,1.40484944]
[1760012836073,0.49351646,123120.0,123110.0,1.40484944]
[1760012836678,0.30420118,123140.0,123130.0,0.137976]
[1760012836984,0.49250586,123140.0,123130.0,0.876216]
[1760012837281,0.54250586,123140.0,123130.0,0.876216]
[1760012837872,0.54350586,123140.0,123130.0,0.876216]
[1760012838477,0.54450586,123140.0,123130.0,0.876216]
[1760012839777,0.90530586,123140.0,123130.0,0.876216]
[1760012840685,0.92669586,123140.0,123130.0,0.876216]
[1760012841085,0.56589586,123140.0,123130.0,0.876216]
[1760012841477,0.56589586,123140.0,123130.0,0.854926]
[1760012841478,0.92669586,123140.0,123130.0,0.854926]
[1760012841780,1.11500054,123140.0,123130.0,0.854926]
[1760012841975,1.11500054,123140.0,123130.0,0.854886]
[1760012842686,1.11500054,123140.0,123130.0,0.116766]
[1760012843087,1.11500054,123140.0,123130.0,0.854886]
[1760012843689,1.11500054,123140.0,123130.0,0.03558]
[1760012843886,1.11500054,123140.0,123130.0,0.7737]
[1760012844084,0.80094755,123140.0,123130.0,0.7737]
[1760012844284,0.91094755,123140.0,123130.0,0.7737]
[1760012844584,0.6600865,123140.0,123130.0,0.7737]
[1760012844785,0.91094755,123140.0,123130.0,0.77366]
[1760012845083,0.91094755,123140.0,123130.0,0.03558]
[1760012845290,0.1380605,123130.0,123120.0,0.03454]
[1760012845490,0.74972155,123130.0,123120.0,0.77262]
[1760012847192,0.75072155,123130.0,123120.0,0.77262]
[1760012848689,0.4788705,123130.0,123120.0,0.79475]
[1760012848891,0.75072155,123130.0,123120.0,0.79475]
[1760012849292,0.75072155,123130.0,123120.0,0.05667]
[1760012849494,0.1380671,123120.0,123110.0,0.06615823]
[1760012849698,0.1380671,123120.0,123110.0,0.87420401]
[1760012849699,1.0005892,123120.0,123110.0,0.87420401]
[1760012850691,1.0005892,123120.0,123110.0,0.77258]
[1760012852282,1.0005892,123120.0,123110.0,0.83786778]
[1760012852488,0.74972815,123120.0,123110.0,0.85999778]
[1760012852690,0.74972815,123120.0,123110.0,0.94120148]
[1760012852890,0.74972815,123120.0,123110.0,0.85999778]
[1760012853490,1.0005892,123120.0,123110.0,0.83786778]
[1760012853993,1.0005892,123120.0,123110.0,0.09982778]
[1760012854289,1.0005892,123120.0,123110.0,0.83786778]
[1760012855399,1.0005892,123120.0,123110.0,0.09982778]
[1760012855592,1.0005892,123120.0,123110.0,0.80332778]
[1760012855897,1.0105892,123120.0,123110.0,0.80332778]
[1760012856394,1.4105892,123120.0,123110.0,0.80328778]
[1760012857598,1.4115892,123120.0,123110.0,0.80328778]
[1760012861296,1.4115892,123120.0,123110.0,0.06528778]
[1760012861497,1.4115892,123120.0,123110.0,0.31356]
[1760012862401,1.0115892,123120.0,123110.0,0.31356]
[1760012862799,1.4115892,123120.0,123110.0,0.31356]
[1760012864398,0.1376237,123110.0,123100.0,0.13584401]
[1760012864701,0.75928475,123110.0,123100.0,0.13584401]
[1760012865696,0.76028475,123110.0,123100.0,0.10162401]
[1760012868197,0.0812103,123100.0,123090.0,0.77226]
[1760012868400,0.74929135,123100.0,123090.0,0.77226]
[1760012868702,0.74929135,123100.0,123090.0,0.87388401]
[1760012872306,0.74929135,123100.0,123090.0,0.95510091]
[1760012872307,0.38849135,123100.0,123090.0,0.95510091]
[1760012872508,0.38849135,123100.0,123090.0,0.87388401]
[1760012873004,0.74929135,123100.0,123090.0,0.87388401]
[1760012873407,0.38849135,123100.0,123090.0,0.87388401]
[1760012873803,0.74929135,123100.0,123090.0,0.87388401]
[1760012874414,0.38849135,123100.0,123090.0,0.87388401]
[1760012874806,0.74929135,123100.0,123090.0,0.87388401]
[1760012875209,0.74929135,123100.0,123090.0,0.77226]
[1760012875507,0.38849135,123100.0,123090.0,0.77226]
[1760012875708,0.74929135,123100.0,123090.0,0.77226]
[1760012875907,0.74929135,123100.0,123090.0,0.87388401]
[1760012877403,0.74929135,123100.0,123090.0,0.13584401]
[1760012877615,0.74929135,123100.0,123090.0,0.77222]
[1760012878805,0.74929135,123100.0,123090.0,0.03422]
[1760012879011,0.74929135,123100.0,123090.0,0.77222]
[1760012879405,0.74929135,123100.0,123090.0,0.87384401]
[1760012882205,0.72790135,123100.0,123090.0,0.97584091]
[1760012884211,0.74827135,123100.0,123090.0,0.89462401]
[1760012884410,0.74827135,123100.0,123090.0,0.97584091]
[1760012885218,0.74827135,123100.0,123090.0,0.95506091]
[1760012885817,0.74827135,123100.0,123090.0,0.95502091]
[1760012888521,0.74827135,123100.0,123090.0,0.87380401]
[1760012890628,0.74827135,123100.0,123090.0,0.95502091]
[1760012892826,0.74827135,123100.0,123090.0,0.8533969]
[1760012894929,0.74827135,123100.0,123090.0,0.77218]
[1760012896825,0.74827135,123100.0,123090.0,0.03422]
[1760012897025,0.74827135,123100.0,123090.0,0.7721]
[1760012897232,0.4974103,123100.0,123090.0,0.7721]
[1760012897530,0.74827135,123100.0,123090.0,0.7721]
[1760012903737,0.38747135,123100.0,123090.0,0.7721]
[1760012903939,0.4974103,123100.0,123090.0,0.7721]
[1760012904135,0.74827135,123100.0,123090.0,0.7721]
[1760012906038,0.4974103,123100.0,123090.0,0.7721]
[1760012906337,1.06212787,123100.0,123090.0,0.7721]
[1760012908536,0.87388868,123100.0,123090.0,0.7721]
[1760012912638,0.49271868,123100.0,123090.0,1.6348869]
[1760012919450,0.49271868,123100.0,123090.0,0.8970069]
[1760012919648,0.49271868,123100.0,123090.0,1.6346469]
[1760012919846,0.49271868,123100.0,123090.0,0.8970069]
[1760012920046,0.49271868,123100.0,123090.0,1.6346469]
[1760012922050,0.49271868,123100.0,123090.0,1.78007651]
[1760012922454,0.1162403,123100.0,123090.0,1.38007651]
[1760012922655,0.49271868,123100.0,123090.0,1.38007651]
[1760012924953,0.49271868,123100.0,123090.0,1.29881961]
[1760012926051,0.51330868,123100.0,123090.0,1.15335]
[1760012927842,0.51330868,123100.0,123090.0,1.15331]
[1760012928053,0.51330868,123100.0,123090.0,0.41579]
[1760012928351,0.51330868,123100.0,123090.0,1.15331]
[1760012929052,0.49271868,123100.0,123090.0,1.2345269]
[1760012929850,0.49271868,123100.0,123090.0,1.15331]
[1760012930051,0.49271868,123100.0,123090.0,0.41579]
[1760012930245,0.49271868,123100.0,123090.0,1.15331]
[1760012932448,0.49271868,123100.0,123090.0,0.41579]
[1760012932649,0.87471868,123100.0,123090.0,0.03422]
[1760012932848,0.87471868,123100.0,123090.0,0.7717]
[1760012937758,0.87471868,123100.0,123090.0,0.77166]
[1760012938156,0.51391868,123100.0,123090.0,0.77166]
[1760012939862,0.51391868,123100.0,123090.0,0.03422]
[1760012940058,0.1350569,123090.0,123080.0,0.13666898]
[1760012940361,0.51153528,123090.0,123080.0,0.13666898]
[1760012940561,0.51153528,123090.0,123080.0,0.77217]
[1760012941662,0.51153528,123090.0,123080.0,0.77417]
[1760012941965,0.51153528,123090.0,123080.0,0.03677]
[1760012942161,0.51153528,123090.0,123080.0,0.77417]
[1760012943358,0.87233528,123090.0,123080.0,0.87613748]
[1760012944356,1.06057447,123090.0,123080.0,0.13873748]
[1760012944564,1.06057447,123090.0,123080.0,0.73936]
[1760012946964,1.06057447,123090.0,123080.0,0.002]
[1760012947268,1.06057447,123090.0,123080.0,0.73936]
[1760012949168,0.87233528,123090.0,123080.0,0.73936]
[1760012951167,1.46057447,123090.0,123080.0,0.73936]
[1760012951366,1.27233528,123090.0,123080.0,0.73936]
[1760012951969,1.27233528,123090.0,123080.0,0.91955961]
[1760012952376,1.46057447,123090.0,123080.0,0.14742961]
[1760012952566,1.46057447,123090.0,123080.0,0.88474961]
[1760012952874,1.46057447,123090.0,123080.0,0.73932]
[1760012953375,1.27233528,123090.0,123080.0,0.73932]
[1760012953571,0.1350635,123080.0,123070.0,0.9488688]
[1760012953774,1.06058107,123080.0,123070.0,0.9488688]
[1760012954076,1.06058107,123080.0,123070.0,0.9836388]
[1760012954374,1.06058107,123080.0,123070.0,0.83820919]
[1760012954775,1.06058107,123080.0,123070.0,0.84020919]
[1760012955277,1.06058107,123080.0,123070.0,0.84220919]
[1760012957074,1.06058107,123080.0,123070.0,0.80743919]
[1760012957573,1.06058107,123080.0,123070.0,0.9876388]
[1760012957772,1.06058107,123080.0,123070.0,0.2503188]
[1760012958076,1.06058107,123080.0,123070.0,0.9756388]
[1760012958273,1.06058107,123080.0,123070.0,0.83020919]
[1760012958672,1.06058107,123080.0,123070.0,0.10488919]
[1760012958870,1.06058107,123080.0,123070.0,0.84220919]
[1760012959071,0.40911838,123080.0,123070.0,1.34088929]
[1760012959373,0.22287919,123080.0,123070.0,1.33888929]
[1760012959573,0.41111838,123080.0,123070.0,1.33888929]
[1760012959778,0.41111838,123080.0,123070.0,1.52712848]
[1760012960070,0.41111838,123080.0,123070.0,1.4843189]
[1760012960270,0.49234188,123080.0,123070.0,1.4843189]
[1760012960471,0.41111838,123080.0,123070.0,1.8451189]
[1760012960775,0.49234188,123080.0,123070.0,1.69968929]
[1760012965575,0.1158635,123080.0,123070.0,1.69968929]
[1760012965776,0.49234188,123080.0,123070.0,1.69968929]
[1760012966774,0.49234188,123080.0,123070.0,1.84530426]
[1760012968078,0.36689179,123080.0,123070.0,1.84530426]
[1760012968967,0.36689179,123080.0,123070.0,1.40327416]
[1760012969167,0.72769179,123080.0,123070.0,1.40327416]
[1760012969374,0.36689179,123080.0,123070.0,0.66595416]
[1760012969574,0.36689179,123080.0,123070.0,1.40323416]
[1760012969772,0.36689179,123080.0,123070.0,0.66595416]
[1760012969969,0.36689179,123080.0,123070.0,1.40323416]
[1760012970373,0.63902008,123080.0,123070.0,0.24650416]
[1760012970677,0.99982008,123080.0,123070.0,0.98362416]
[1760012972479,0.99982008,123080.0,123070.0,0.83800919]
[1760012973382,0.99982008,123080.0,123070.0,0.98362416]
[1760012973980,0.99982008,123080.0,123070.0,0.83800919]
[1760012974681,1.39982008,123080.0,123070.0,0.80339919]
[1760012975072,1.39982008,123080.0,123070.0,0.90537611]
[1760012975886,1.39982008,123080.0,123070.0,0.80339919]
[1760012977485,1.39982008,123080.0,123070.0,0.83800919]
[1760012978082,1.39982008,123080.0,123070.0,0.98362416]
[1760012980184,1.39982008,123080.0,123070.0,1.08559001]
[1760012980580,1.39982008,123080.0,123070.0,0.93997504]
[1760012982392,0.99982008,123080.0,123070.0,0.93997504]
[1760012987598,0.99982008,123080.0,123070.0,0.83800919]
[1760012987994,0.99982008,123080.0,123070.0,0.93997504]
[1760012989501,0.99982008,123080.0,123070.0,0.83800919]
[1760012991097,0.99982008,123080.0,123070.0,0.93997504]
[1760012992388,0.99982008,123080.0,123070.0,0.83800919]
[1760012992593,0.99982008,123080.0,123070.0,0.93985934]
[1760012993496,0.99982008,123080.0,123070.0,0.90524934]
[1760012993799,0.99982008,123080.0,123070.0,0.93877934]
[1760013001306,0.99982008,123080.0,123070.0,0.95355511]
[1760013002004,0.99982008,123080.0,123070.0,0.97293511]
[1760013002216,0.39544,123080.0,123070.0,1.35231506]
[1760013002409,0.61382829,123080.0,123070.0,1.4542247]
[1760013002609,0.25302829,123080.0,123070.0,1.4542247]
[1760013002811,0.002,123080.0,123070.0,1.35231506]
[1760013003008,0.25302829,123080.0,123070.0,1.71311506]
[1760013007008,0.33425179,123080.0,123070.0,1.71311506]
[1760013008314,0.36692179,123080.0,123070.0,0.97583506]
[1760013008613,0.36692179,123080.0,123070.0,1.71291506]
[1760013010609,0.36692179,123080.0,123070.0,1.35211506]
[1760013012111,0.36692179,123080.0,123070.0,1.35207506]
[1760013014517,0.36692179,123080.0,123070.0,1.35203506]
[1760013014718,0.61795008,123080.0,123070.0,1.35203506]
[1760013015314,0.61795008,123080.0,123070.0,0.53380496]
[1760013015519,0.99848008,123080.0,123070.0,1.25142496]
[1760013015912,0.99848008,123080.0,123070.0,0.51442496]
[1760013016113,0.99848008,123080.0,123070.0,1.35334968]
[1760013018424,0.99848008,123080.0,123070.0,1.37272968]
[1760013018918,0.99848008,123080.0,123070.0,1.27080496]
[1760013019220,0.99848008,123080.0,123070.0,1.37273255]
[1760013019821,0.4766935,123080.0,123070.0,1.45396265]
[1760013020015,0.97875008,123080.0,123070.0,1.45396265]
[1760013020414,0.97875008,123080.0,123070.0,1.35203506]
[1760013020615,0.97875008,123080.0,123070.0,1.27080496]
[1760013021615,0.99848008,123080.0,123070.0,0.13380496]
[1760013021820,0.99848008,123080.0,123070.0,0.95331362]
[1760013022222,0.99848008,123080.0,123070.0,0.85138496]
[1760013022922,0.99848008,123080.0,123070.0,0.97264163]
[1760013023318,0.99848008,123080.0,123070.0,0.97260163]
[1760013024520,0.4766935,123080.0,123070.0,0.97260163]
[1760013024722,0.61795008,123080.0,123070.0,1.41463173]
[1760013025019,0.36692179,123080.0,123070.0,1.41463173]
[1760013025224,0.36692179,123080.0,123070.0,1.05383173]
[1760013025419,0.38548179,123080.0,123070.0,0.97260163]
[1760013025825,0.74628179,123080.0,123070.0,0.97260163]
[1760013027125,0.99731008,123080.0,123070.0,0.97260163]
[1760013027324,0.99731008,123080.0,123070.0,0.87067496]
[1760013028224,1.39731008,123080.0,123070.0,0.11442496]
[1760013028425,1.40731008,123080.0,123070.0,0.80505496]
[1760013028724,1.40731008,123080.0,123070.0,0.08089496]
[1760013028925,1.40731008,123080.0,123070.0,0.91973824]
[1760013030127,1.47031847,123080.0,123070.0,0.91973824]
[1760013032334,1.47031847,123080.0,123070.0,0.81777496]
[1760013033033,1.47031847,123080.0,123070.0,0.08089496]
[1760013033232,1.47031847,123080.0,123070.0,0.78157496]
[1760013033430,1.47031847,123080.0,123070.0,0.08089496]
[1760013034130,0.9052535,123080.0,123070.0,0.08089496]
[1760013034333,1.47031847,123080.0,123070.0,0.06611919]
[1760013035032,1.47031847,123080.0,123070.0,0.16809061]
[1760013035436,1.47031847,123080.0,123070.0,0.06611919]
[1760013036835,1.47031847,123080.0,123070.0,0.08112303]
[1760013037029,1.47031847,123080.0,123070.0,8.891e-05]
[1760013037625,1.47031847,123080.0,123070.0,0.01491052]
[1760013038338,0.1311633,123050.0,123040.0,0.03337]
[1760013038536,1.05702827,123050.0,123040.0,0.91575022]
[1760013038837,1.05702827,123050.0,123040.0,0.88238022]
[1760013039136,1.05709489,123050.0,123040.0,0.88238022]
[1760013039332,1.45709489,123050.0,123040.0,0.89766188]
[1760013039539,0.8687399,123050.0,123040.0,0.93303188]
[1760013040132,0.8687399,123050.0,123040.0,0.78953166]
[1760013040836,1.05709489,123050.0,123040.0,0.75616166]
[1760013041035,1.05709489,123050.0,123040.0,0.78953166]
[1760013041340,1.05709489,123050.0,123040.0,0.75616166]
[1760013041739,1.05709489,123050.0,123040.0,0.90180558]
[1760013042534,1.05709489,123050.0,123040.0,0.75416166]
[1760013042937,1.05709489,123050.0,123040.0,0.81844672]
[1760013044934,1.05709489,123050.0,123040.0,0.96409064]
[1760013045141,1.05709489,123050.0,123040.0,0.46487761]
[1760013045142,1.46709489,123050.0,123040.0,0.46487761]
[1760013045828,1.45709489,123050.0,123040.0,0.32909658]
[1760013046030,1.63709489,123050.0,123040.0,0.31381492]
[1760013046442,2.37401489,123050.0,123040.0,0.31381492]
[1760013046740,2.37401489,123050.0,123040.0,0.166171]
[1760013047039,0.0812499,123040.0,123030.0,0.01494062]
[1760013047241,0.1331465,123030.0,123020.0,0.83158359]
[1760013047541,0.87065648,123030.0,123020.0,0.97722751]
[1760013048240,0.87065648,123030.0,123020.0,0.99204561]
[1760013048540,1.05901147,123030.0,123020.0,0.96336561]
[1760013048936,1.05901147,123030.0,123020.0,0.81772169]
[1760013049334,0.87065648,123030.0,123020.0,0.08080169]
[1760013049739,0.87065648,123030.0,123020.0,0.08280169]
[1760013052337,0.87065648,123030.0,123020.0,0.11348169]
[1760013058445,0.4939465,123030.0,123020.0,0.11348169]
[1760013058647,0.87065648,123030.0,123020.0,0.11348169]
[1760013059240,0.54915499,123040.0,123030.0,0.0812565]
[1760013059445,0.30268489,123040.0,123030.0,1.06033149]
[1760013059646,0.30268489,123040.0,123030.0,0.8719765]
[1760013059849,0.1143299,123040.0,123030.0,0.8719765]
[1760013060048,0.85183988,123040.0,123030.0,0.79072]
[1760013060556,0.85183988,123040.0,123030.0,0.738]
[1760013060557,1.06070487,123040.0,123030.0,0.738]
[1760013060847,1.06070487,123040.0,123030.0,0.002]
[1760013061238,1.08070487,123040.0,123030.0,0.002]
[1760013062452,2.21770487,123040.0,123030.0,0.002]
[1760013068352,0.0812763,123000.0,122990.0,0.13598051]
[1760013068657,0.87246067,123000.0,122990.0,0.77108801]
[1760013068954,0.87246067,123000.0,122990.0,0.87292013]
[1760013069659,0.87246067,123000.0,122990.0,0.87492013]
[1760013070059,0.85195067,123000.0,122990.0,1.06702204]
[1760013070251,0.85195067,123000.0,122990.0,0.98573914]
[1760013070452,0.87246067,123000.0,122990.0,0.98573914]
[1760013070757,0.87246067,123000.0,122990.0,1.06702204]
[1760013071360,0.87246067,123000.0,122990.0,0.88390702]
[1760013072258,0.87246067,123000.0,122990.0,0.86421702]
[1760013073457,0.87246067,123000.0,122990.0,0.86621702]
[1760013073657,0.85195067,123000.0,122990.0,1.28590702]
[1760013074666,0.85195067,123000.0,122990.0,1.36718992]
[1760013077266,0.49115067,123000.0,122990.0,1.36718992]
[1760013077967,0.45807067,123000.0,122990.0,1.55554491]
[1760013078163,0.26971568,123000.0,122990.0,1.36718992]
[1760013078364,0.45807067,123000.0,122990.0,1.36718992]
[1760013079262,0.49115067,123000.0,122990.0,0.63018992]
[1760013079464,0.49115067,123000.0,122990.0,1.36726992]
[1760013080067,0.11444069,123000.0,122990.0,1.36726992]
[1760013080270,0.49115067,123000.0,122990.0,1.36726992]
[1760013081962,0.67950566,123000.0,122990.0,1.36726992]
[1760013083167,1.05890566,123000.0,122990.0,0.86629702]
[1760013083462,1.05890566,123000.0,122990.0,0.88519702]
[1760013083662,1.05890566,123000.0,122990.0,0.86629702]
[1760013084062,0.85195067,123000.0,122990.0,0.88519702]
[1760013087071,1.05890566,123000.0,122990.0,0.86629702]
[1760013087871,1.04030566,123000.0,122990.0,0.88519702]
[1760013089573,1.05890566,123000.0,122990.0,0.12921702]
[1760013089774,1.05890566,123000.0,122990.0,0.86633702]
[1760013091276,0.85195067,123000.0,122990.0,0.96651992]
[1760013092079,0.72660789,123000.0,122990.0,0.96651992]
[1760013094178,0.72660789,123000.0,122990.0,0.88523702]
[1760013094578,0.97797509,123000.0,122990.0,0.88523702]
[1760013095175,0.97797509,123000.0,122990.0,0.96651992]
[1760013097281,0.72660789,123000.0,122990.0,0.96651992]
[1760013098185,0.72660789,123000.0,122990.0,0.88523702]
[1760013098482,0.72660789,123000.0,122990.0,1.06835204]
[1760013099086,0.72660789,123000.0,122990.0,0.98706914]
[1760013099886,0.97797509,123000.0,122990.0,1.06835204]
[1760013100382,0.99657509,123000.0,122990.0,0.98702914]
[1760013100582,0.99657509,123000.0,122990.0,0.23104914]
[1760013100980,0.99657509,123000.0,122990.0,0.96812914]
[1760013101283,0.99657509,123000.0,122990.0,0.23104914]
[1760013101885,0.99657509,123000.0,122990.0,0.96812914]
[1760013102483,0.99657509,123000.0,122990.0,0.96712914]
[1760013102682,0.99657509,123000.0,122990.0,0.96512914]
[1760013102886,0.49384069,123000.0,122990.0,0.96612914]
[1760013103186,0.72660789,123000.0,122990.0,0.98502914]
[1760013103679,0.97797509,123000.0,122990.0,0.98502914]
[1760013103880,0.97797509,123000.0,122990.0,1.06631204]
[1760013104283,0.47524069,123000.0,122990.0,1.06631204]
[1760013104585,0.72660789,123000.0,122990.0,1.06631204]
[1760013104781,0.72660789,123000.0,122990.0,0.96447992]
[1760013105381,0.72660789,123000.0,122990.0,0.88319702]
[1760013106183,0.97797509,123000.0,122990.0,0.88319702]
[1760013106584,0.99791509,123000.0,122990.0,0.88319702]
[1760013107787,0.97797509,123000.0,122990.0,0.88319702]
[1760013109392,0.97797509,123000.0,122990.0,0.14611702]
[1760013109585,0.99791509,123000.0,122990.0,0.12721702]
[1760013109783,0.99791509,123000.0,122990.0,0.86429702]
[1760013111188,0.99791509,123000.0,122990.0,0.12721702]
[1760013111384,0.99791509,123000.0,122990.0,0.86429702]
[1760013111890,0.61717509,123000.0,122990.0,0.88285702]
[1760013112091,0.61717509,123000.0,122990.0,0.14577702]
[1760013112286,0.97797509,123000.0,122990.0,0.88285702]
[1760013113483,0.47524069,123000.0,122990.0,0.88285702]
[1760013113686,0.72660789,123000.0,122990.0,0.96413992]
[1760013113883,0.72660789,123000.0,122990.0,0.88285702]
[1760013114789,0.97797509,123000.0,122990.0,0.88285702]
[1760013116192,0.97797509,123000.0,122990.0,1.06633978]
[1760013116686,0.86361879,123000.0,122990.0,1.06633978]
[1760013116883,0.03276,123040.0,123030.0,0.1324565]
[1760013117078,0.0306133,123040.0,123030.0,0.8698565]
[1760013117280,0.2841272,123060.0,123050.0,0.1324433]
[1760013117484,0.3653639,123060.0,123050.0,0.7728]
[1760013117682,0.3653639,123060.0,123050.0,1.51084]
[1760013118191,0.3653639,123060.0,123050.0,1.55236572]
[1760013118584,0.3653639,123060.0,123050.0,0.81432572]
[1760013118780,0.3653639,123060.0,123050.0,1.63364902]
[1760013118986,0.3693639,123060.0,123050.0,1.63364902]
[1760013119286,0.03676,123060.0,123050.0,1.63364902]
[1760013119483,0.2881272,123060.0,123050.0,1.63364902]
[1760013119689,0.2881272,123060.0,123050.0,2.03364902]
[1760013119690,0.004,123060.0,123050.0,2.03364902]
[1760013119885,0.004,123060.0,123050.0,2.09821484]
[1760013120088,0.004,123060.0,123050.0,1.36013484]
[1760013120491,0.004,123060.0,123050.0,2.09813484]
[1760013120793,0.004,123060.0,123050.0,2.09809484]
[1760013120991,0.004,123060.0,123050.0,1.36013484]
[1760013121293,0.3366039,123060.0,123050.0,2.09805484]
[1760013121686,0.0852367,123060.0,123050.0,2.09805484]
[1760013121883,0.3366039,123060.0,123050.0,1.36013484]
[1760013122294,0.3366039,123060.0,123050.0,2.19967894]
[1760013122494,0.2553672,123060.0,123050.0,1.46179894]
[1760013122688,0.2543672,123060.0,123050.0,2.19959894]
[1760013123595,0.001,123060.0,123050.0,2.19959894]
[1760013124189,0.001,123060.0,123050.0,2.09793484]
[1760013125791,0.2523672,123060.0,123050.0,2.09793484]
[1760013126591,0.001,123060.0,123050.0,2.09769484]
[1760013126798,0.001,123060.0,123050.0,1.36013484]
[1760013126993,0.001,123060.0,123050.0,2.09761484]
[1760013128796,0.2523672,123060.0,123050.0,2.09761484]
[1760013129692,0.2523672,123060.0,123050.0,1.36013484]
[1760013129888,0.1012326,123090.0,123060.0,0.0998767]
[1760013130089,0.3939826,123090.0,123080.0,0.7728]
[1760013130290,0.6453498,123090.0,123080.0,0.7728]
[1760013130495,0.6453498,123090.0,123080.0,1.5915435]
[1760013130895,0.3939826,123090.0,123080.0,1.5915435]
[1760013131094,0.31276,123090.0,123080.0,1.5915435]
[1760013131296,0.6463441,123090.0,123080.0,1.5915035]
[1760013131694,0.4263441,123090.0,123080.0,1.5915035]
[1760013132197,0.4273441,123090.0,123080.0,0.8540235]
[1760013132399,0.4273441,123090.0,123080.0,1.5914635]
[1760013132698,0.4273441,123090.0,123080.0,0.8540235]
[1760013132899,0.4263441,123090.0,123080.0,1.5913835]
[1760013133200,0.4273441,123090.0,123080.0,1.51016]
[1760013133995,0.4273441,123090.0,123080.0,0.7728]
[1760013134199,0.4273441,123090.0,123080.0,1.51008]
[1760013135100,0.4473541,123090.0,123080.0,0.75416]
[1760013135300,0.7073541,123090.0,123080.0,1.4914]
[1760013135698,0.7073541,123090.0,123080.0,0.75416]
[1760013135897,0.7073541,123090.0,123080.0,1.49136]
[1760013136095,0.7073541,123090.0,123080.0,0.75416]
[1760013136406,1.1987213,123090.0,123080.0,1.45876]
[1760013136595,1.1987213,123090.0,123080.0,0.7216]
[1760013136791,1.1987213,123090.0,123080.0,1.45872]
[1760013137705,1.1987213,123090.0,123080.0,1.45932]
[1760013139705,1.1987213,123090.0,123080.0,1.4592]
[1760013140706,1.1987213,123090.0,123080.0,1.49176]
[1760013141207,0.9473541,123090.0,123080.0,0.75416]
[1760013141601,0.6959869,123090.0,123080.0,1.49164]
[1760013141801,0.9473541,123090.0,123080.0,1.49164]
[1760013142506,0.9473541,123090.0,123080.0,1.4916]
[1760013143010,0.5273441,123090.0,123080.0,1.51134]
[1760013143204,0.5273441,123090.0,123080.0,1.5925635]
[1760013143403,0.5273441,123090.0,123080.0,1.51134]
[1760013144301,0.5273441,123090.0,123080.0,1.5115]
[1760013145408,0.2759769,123090.0,123080.0,0.7739]
[1760013145706,0.5273441,123090.0,123080.0,1.5927235]
[1760013146897,0.4133672,123090.0,123080.0,1.2551235]
[1760013147100,0.2533672,123090.0,123080.0,1.9926835]
[1760013147502,0.002,123090.0,123080.0,1.2551235]
[1760013147700,0.002,123090.0,123080.0,1.9935235]
[1760013148702,0.3325781,123100.0,123090.0,0.0812169]
[1760013148908,0.3974081,123100.0,123090.0,0.4948369]
[1760013149408,0.3974081,123100.0,123090.0,0.55856323]
[1760013149610,0.3974081,123100.0,123090.0,1.29692323]
[1760013150306,0.3974081,123100.0,123090.0,1.29680323]
[1760013150708,0.3974081,123100.0,123090.0,0.55856323]
[1760013150908,0.3674081,123100.0,123090.0,0.55856323]
[1760013151107,0.3674081,123100.0,123090.0,1.29676323]
[1760013151409,0.3684081,123100.0,123090.0,1.29676323]
[1760013151610,0.3684081,123100.0,123090.0,1.29672323]
[1760013152211,0.3684081,123100.0,123090.0,0.55856323]
[1760013152609,0.3684081,123100.0,123090.0,1.29668323]
[1760013154113,0.49345066,123100.0,123090.0,1.29668323]
[1760013154906,0.49345066,123100.0,123090.0,1.29652323]
[1760013155812,0.49345066,123100.0,123090.0,0.55856323]
[1760013156003,0.49345066,123100.0,123090.0,1.29652323]
[1760013156205,0.49345066,123100.0,123090.0,0.55856323]
[1760013156406,0.49345066,123100.0,123090.0,1.29644323]
[1760013157815,0.1170409,123100.0,123090.0,1.29644323]
[1760013158009,0.45862006,123100.0,123090.0,1.69632323]
[1760013158313,0.49345006,123100.0,123090.0,1.69636323]
[1760013159008,0.49345006,123100.0,123090.0,0.95856323]
[1760013159212,0.49345006,123100.0,123090.0,1.69632323]
[1760013159412,0.49345006,123100.0,123090.0,0.95856323]
[1760013159612,0.49345006,123100.0,123090.0,1.69628323]
[1760013160710,0.49345006,123100.0,123090.0,1.07979188]
[1760013160916,0.49345006,123100.0,123090.0,1.81751188]
[1760013161111,0.49345006,123100.0,123090.0,1.07979188]
[1760013161315,0.49345006,123100.0,123090.0,1.81747188]
[1760013161516,0.49345006,123100.0,123090.0,1.07979188]
[1760013161716,0.49345006,123100.0,123090.0,1.81743188]
[1760013162215,0.49345006,123100.0,123090.0,0.59857498]
[1760013162411,0.49345006,123100.0,123090.0,1.41735188]
[1760013162718,0.49345006,123100.0,123090.0,0.67979188]
[1760013163020,0.49345006,123100.0,123090.0,1.41735188]
[1760013164115,0.49345006,123100.0,123090.0,0.67979188]
[1760013164314,0.49345006,123100.0,123090.0,1.41727188]
[1760013167127,0.49345006,123100.0,123090.0,0.67979188]
[1760013167326,0.49345006,123100.0,123090.0,1.41715188]
[1760013168334,0.49345006,123100.0,123090.0,1.41711188]
[1760013172632,0.49345006,123100.0,123090.0,1.51877598]
[1760013172828,0.49345006,123100.0,123090.0,1.41711188]
[1760013173035,0.49345006,123100.0,123090.0,1.41691188]
[1760013173928,0.49345006,123100.0,123090.0,0.67979188]
[1760013174428,0.49345006,123100.0,123090.0,1.41675188]
[1760013175234,0.49345006,123100.0,123090.0,1.51841598]
[1760013175433,0.49345006,123100.0,123090.0,0.70023908]
[1760013175636,0.49345006,123100.0,123090.0,1.41675188]